[Event "Titled Tuesday Blitz March 01 Late 2022"]
[White "Caruana, Fabiano"]
[Black "Muradli, Mahammad"]
[WhiteFideId "2020009"]
[BlackFideId "13409301"]
[WhiteElo "2744"]
[BlackElo "2645"]
[Result "1-0"]
[Round "06"]
[TimeControl "180+1"]
[Date "2022.03.01"]
[WhiteClock "0:00:04"]
[BlackClock "0:00:02"]

1. Nf3 {[%clk 0:03:00]}  Nf6 {[%clk 0:02:57]} 2. g3 {[%clk 0:03:00]}  b6 {[%clk 0:02:57]} 3. Bg2 {[%clk 0:03:01]}  Bb7 {[%clk 0:02:57]} 4. O-O {[%clk 0:03:01]}  g6 {[%clk 0:02:58]} 5. c4 {[%clk 0:03:00]}  Bg7 {[%clk 0:02:57]} 6. Nc3 {[%clk 0:03:01]}  c5 {[%clk 0:02:57]} 7. Re1 {[%clk 0:02:59]}  O-O {[%clk 0:02:50]} 8. e4 {[%clk 0:02:59]}  Nc6 {[%clk 0:02:46]} 9. d3 {[%clk 0:02:56]}  d6 {[%clk 0:02:46]} 10. h3 {[%clk 0:02:56]}  Nd7 {[%clk 0:02:45]} 11. Be3 {[%clk 0:02:56]}  Nde5 {[%clk 0:02:44]} 12. Nh2 {[%clk 0:02:55]}  Nd4 {[%clk 0:02:43]} 13. Bxd4 {[%clk 0:02:44]}  cxd4 {[%clk 0:02:44]} 14. Ne2 {[%clk 0:02:43]}  Nd7 {[%clk 0:02:44]} 15. f4 {[%clk 0:02:43]}  a6 {[%clk 0:02:43]} 16. g4 {[%clk 0:02:42]}  b5 {[%clk 0:02:43]} 17. b3 {[%clk 0:02:42]}  Qb6 {[%clk 0:02:26]} 18. Kh1 {[%clk 0:02:37]}  a5 {[%clk 0:02:23]} 19. Nf3 {[%clk 0:02:37]}  a4 {[%clk 0:02:11]} 20. Rb1 {[%clk 0:02:29]}  axb3 {[%clk 0:02:02]} 21. Rxb3 {[%clk 0:02:25]}  Rxa2 {[%clk 0:02:02]} 22. Rxb5 {[%clk 0:02:26]}  Qa7 {[%clk 0:02:02]} 23. Nc1 {[%clk 0:02:13]}  Ra1 {[%clk 0:01:58]} 24. Qe2 {[%clk 0:02:08]}  Nc5 {[%clk 0:01:54]} 25. e5 {[%clk 0:01:55]}  Ne6 {[%clk 0:01:32]} 26. Qd2 {[%clk 0:01:47]}  Bxf3 {[%clk 0:01:26]} 27. Bxf3 {[%clk 0:01:46]}  dxe5 {[%clk 0:01:27]} 28. fxe5 {[%clk 0:01:44]}  Nc5 {[%clk 0:01:20]} 29. Kg2 {[%clk 0:01:18]}  Ra3 {[%clk 0:01:18]} 30. h4 {[%clk 0:01:04]}  Rc3 {[%clk 0:00:45]} 31. h5 {[%clk 0:01:02]}  gxh5 {[%clk 0:00:37]} 32. gxh5 {[%clk 0:01:00]}  h6 {[%clk 0:00:38]} 33. Be4 {[%clk 0:00:55]}  Kh8 {[%clk 0:00:37]} 34. Bf3 {[%clk 0:00:21]}  Rg8 {[%clk 0:00:37]} 35. Kf1 {[%clk 0:00:21]}  Ne6 {[%clk 0:00:28]} 36. Ne2 {[%clk 0:00:18]}  Ra3 {[%clk 0:00:28]} 37. Ng3 {[%clk 0:00:17]}  Ng5 {[%clk 0:00:27]} 38. Bg2 {[%clk 0:00:16]}  e6 {[%clk 0:00:26]} 39. Rb7 {[%clk 0:00:15]}  Qa6 {[%clk 0:00:23]} 40. Qe2 {[%clk 0:00:13]}  Ra2 {[%clk 0:00:22]} 41. Rb2 {[%clk 0:00:13]}  Ra5 {[%clk 0:00:22]} 42. Qf2 {[%clk 0:00:11]}  Rxe5 {[%clk 0:00:19]} 43. Rbe2 {[%clk 0:00:09]}  Rxe2 {[%clk 0:00:19]} 44. Rxe2 {[%clk 0:00:10]}  f5 {[%clk 0:00:19]} 45. Re1 {[%clk 0:00:09]}  Qa3 {[%clk 0:00:19]} 46. Qd2 {[%clk 0:00:08]}  Qd6 {[%clk 0:00:18]} 47. Ne2 {[%clk 0:00:08]}  Qh2 {[%clk 0:00:15]} 48. Qf4 {[%clk 0:00:07]}  Qxh5 {[%clk 0:00:14]} 49. Ng3 {[%clk 0:00:08]}  Qg6 {[%clk 0:00:14]} 50. c5 {[%clk 0:00:06]}  e5 {[%clk 0:00:11]} 51. Qh4 {[%clk 0:00:07]}  Bf6 {[%clk 0:00:04]} 52. Qh5 {[%clk 0:00:06]}  f4 {[%clk 0:00:03]} 53. Qxg6 {[%clk 0:00:06]}  Rxg6 {[%clk 0:00:04]} 54. Nf5 {[%clk 0:00:05]}  f3 {[%clk 0:00:04]} 55. Bh1 {[%clk 0:00:06]}  Bd8 {[%clk 0:00:05]} 56. Rxe5 {[%clk 0:00:04]}  Bc7 {[%clk 0:00:03]} 57. Re8+ {[%clk 0:00:04]}  Rg8 {[%clk 0:00:03]} 58. Rxg8+ {[%clk 0:00:04]}  Kxg8 {[%clk 0:00:04]} 59. Nxd4 {[%clk 0:00:04]}  Kf7 {[%clk 0:00:03]} 60. Nb5 {[%clk 0:00:04]}  Be5 {[%clk 0:00:03]} 61. d4 {[%clk 0:00:04]}  Bf4 {[%clk 0:00:03]} 62. Kf2 {[%clk 0:00:04]}  Ke7 {[%clk 0:00:03]} 63. Bxf3 {[%clk 0:00:05]}  Kd7 {[%clk 0:00:03]} 64. Bg2 {[%clk 0:00:05]}  Kd8 {[%clk 0:00:03]} 65. d5 {[%clk 0:00:05]}  Nf7 {[%clk 0:00:03]} 66. Kf3 {[%clk 0:00:04]}  Be5 {[%clk 0:00:03]} 67. Ke4 {[%clk 0:00:04]}  Bh2 {[%clk 0:00:04]} 68. d6 {[%clk 0:00:04]}  Bg1 {[%clk 0:00:02]} 69. Kd5 {[%clk 0:00:04]} 1-0


[Site "https://www.chess.com"]

[Event "Titled Tuesday Blitz March 01 Late 2022"]
[White "Daggupati, Balaji"]
[Black "Krishnan, Varun"]
[WhiteFideId "2090759"]
[BlackFideId "5054508"]
[WhiteElo "2741"]
[BlackElo "2623"]
[Result "1-0"]
[Round "06"]
[TimeControl "180+1"]
[Date "2022.03.01"]
[WhiteClock "0:00:58"]
[BlackClock "0:00:03"]

1. e4 {[%clk 0:03:00]}  c5 {[%clk 0:02:59]} 2. Nf3 {[%clk 0:03:01]}  e6 {[%clk 0:02:58]} 3. d4 {[%clk 0:03:01]}  cxd4 {[%clk 0:02:59]} 4. Nxd4 {[%clk 0:03:02]}  Nc6 {[%clk 0:03:00]} 5. Nc3 {[%clk 0:03:02]}  Qc7 {[%clk 0:02:59]} 6. Be2 {[%clk 0:03:02]}  Nf6 {[%clk 0:02:58]} 7. O-O {[%clk 0:03:03]}  a6 {[%clk 0:02:58]} 8. Kh1 {[%clk 0:03:03]}  Bb4 {[%clk 0:02:49]} 9. Qd3 {[%clk 0:03:01]}  Bxc3 {[%clk 0:02:18]} 10. bxc3 {[%clk 0:02:58]}  O-O {[%clk 0:02:12]} 11. Bg5 {[%clk 0:02:58]}  Qe5 {[%clk 0:01:52]} 12. f4 {[%clk 0:02:57]}  Qxe4 {[%clk 0:01:46]} 13. Qg3 {[%clk 0:02:57]}  Qg6 {[%clk 0:01:34]} 14. Bd3 {[%clk 0:02:57]}  Ne4 {[%clk 0:01:24]} 15. Bxe4 {[%clk 0:02:57]}  Qxe4 {[%clk 0:01:23]} 16. f5 {[%clk 0:02:57]}  f6 {[%clk 0:00:58]} 17. Bh6 {[%clk 0:02:43]}  Rf7 {[%clk 0:00:57]} 18. fxe6 {[%clk 0:02:43]}  dxe6 {[%clk 0:00:50]} 19. Rxf6 {[%clk 0:02:44]}  Re7 {[%clk 0:00:22]} 20. Raf1 {[%clk 0:02:26]}  Bd7 {[%clk 0:00:22]} 21. Qf2 {[%clk 0:02:05]}  Ree8 {[%clk 0:00:11]} 22. Bxg7 {[%clk 0:01:59]}  Kxg7 {[%clk 0:00:11]} 23. Rf7+ {[%clk 0:01:57]}  Kg8 {[%clk 0:00:11]} 24. Qf6 {[%clk 0:01:21]}  Qg6 {[%clk 0:00:11]} 25. Qxg6+ {[%clk 0:01:22]}  hxg6 {[%clk 0:00:11]} 26. Rxd7 {[%clk 0:01:22]}  Rf8 {[%clk 0:00:11]} 27. Re1 {[%clk 0:01:17]}  Nxd4 {[%clk 0:00:08]} 28. cxd4 {[%clk 0:01:17]}  Rad8 {[%clk 0:00:08]} 29. Rxb7 {[%clk 0:01:17]}  Rxd4 {[%clk 0:00:08]} 30. h3 {[%clk 0:01:18]}  Rd2 {[%clk 0:00:08]} 31. Rxe6 {[%clk 0:01:17]}  Rxc2 {[%clk 0:00:08]} 32. Rxg6+ {[%clk 0:01:17]}  Kh8 {[%clk 0:00:08]} 33. Rh6+ {[%clk 0:01:17]}  Kg8 {[%clk 0:00:08]} 34. Rxa6 {[%clk 0:01:16]}  Rf1+ {[%clk 0:00:07]} 35. Kh2 {[%clk 0:01:15]}  Rc8 {[%clk 0:00:08]} 36. Rg6+ {[%clk 0:01:14]}  Kh8 {[%clk 0:00:07]} 37. Rh6+ {[%clk 0:01:15]}  Kg8 {[%clk 0:00:08]} 38. Rhh7 {[%clk 0:01:16]}  Rf2 {[%clk 0:00:07]} 39. Rbg7+ {[%clk 0:01:15]}  Kf8 {[%clk 0:00:07]} 40. Ra7 {[%clk 0:01:14]}  Kg8 {[%clk 0:00:07]} 41. Rhg7+ {[%clk 0:01:13]}  Kh8 {[%clk 0:00:07]} 42. Rg4 {[%clk 0:01:14]}  Rcc2 {[%clk 0:00:04]} 43. Ra8+ {[%clk 0:01:12]}  Kh7 {[%clk 0:00:04]} 44. Ra5 {[%clk 0:01:11]}  Kh6 {[%clk 0:00:02]} 45. Ra6+ {[%clk 0:01:05]}  Kh7 {[%clk 0:00:02]} 46. Ra7+ {[%clk 0:01:05]}  Kh6 {[%clk 0:00:02]} 47. a4 {[%clk 0:01:05]}  Rf1 {[%clk 0:00:02]} 48. Ra8 {[%clk 0:01:04]}  Kh7 {[%clk 0:00:02]} 49. a5 {[%clk 0:01:04]}  Rcc1 {[%clk 0:00:02]} 50. Rb8 {[%clk 0:00:57]}  Rh1+ {[%clk 0:00:01]} 51. Kg3 {[%clk 0:00:57]}  Rc3+ {[%clk 0:00:02]} 52. Kh4 {[%clk 0:00:58]}  Rf1 {[%clk 0:00:02]} 53. Rb5 {[%clk 0:00:58]}  Rf6 {[%clk 0:00:01]} 54. Rh5+ {[%clk 0:00:58]}  Rh6 {[%clk 0:00:01]} 55. Rxh6+ {[%clk 0:00:58]}  Kxh6 {[%clk 0:00:02]} 56. Ra4 {[%clk 0:00:59]}  Rc7 {[%clk 0:00:02]} 57. a6 {[%clk 0:00:59]}  Ra7 {[%clk 0:00:02]} 58. Kg4 {[%clk 0:00:59]}  Kg6 {[%clk 0:00:03]} 59. Kf4 {[%clk 0:01:00]}  Kf6 {[%clk 0:00:03]} 60. h4 {[%clk 0:00:59]}  Kg6 {[%clk 0:00:03]} 61. Ke5 {[%clk 0:00:58]}  Re7+ {[%clk 0:00:03]} 62. Kd6 {[%clk 0:00:58]}  Ra7 {[%clk 0:00:03]} 63. Kc6 {[%clk 0:00:58]}  Ra8 {[%clk 0:00:02]} 64. Kb7 {[%clk 0:00:58]}  Rg8 {[%clk 0:00:02]} 65. a7 {[%clk 0:00:58]}  Kh5 {[%clk 0:00:03]} 66. a8=Q {[%clk 0:00:58]}  Rxa8 {[%clk 0:00:03]} 1-0


[Site "https://www.chess.com"]

[Event "Titled Tuesday Blitz March 01 Late 2022"]
[White "Debray, Christopher"]
[Black "Steenbekkers, Franck"]
[WhiteFideId "630810"]
[BlackFideId "1004220"]
[WhiteElo "2369"]
[BlackElo "2166"]
[Result "0-1"]
[Round "06"]
[TimeControl "180+1"]
[Date "2022.03.02"]
[WhiteClock "0:00:01"]
[BlackClock "0:00:06"]

1. d4 {[%clk 0:03:00]}  Nf6 {[%clk 0:02:57]} 2. Nf3 {[%clk 0:03:01]}  g6 {[%clk 0:02:56]} 3. g3 {[%clk 0:03:00]}  Bg7 {[%clk 0:02:56]} 4. Bg2 {[%clk 0:03:01]}  O-O {[%clk 0:02:55]} 5. O-O {[%clk 0:03:01]}  d5 {[%clk 0:02:55]} 6. c4 {[%clk 0:02:55]}  c6 {[%clk 0:02:52]} 7. Nc3 {[%clk 0:02:45]}  Ne4 {[%clk 0:02:51]} 8. Qb3 {[%clk 0:02:32]}  a5 {[%clk 0:02:06]} 9. Rd1 {[%clk 0:02:14]}  dxc4 {[%clk 0:01:58]} 10. Qxc4 {[%clk 0:02:13]}  Nd6 {[%clk 0:01:57]} 11. Qd3 {[%clk 0:02:05]}  Na6 {[%clk 0:01:56]} 12. e4 {[%clk 0:01:59]}  Nb4 {[%clk 0:01:47]} 13. Qe2 {[%clk 0:01:59]}  b6 {[%clk 0:01:38]} 14. Ne1 {[%clk 0:01:51]}  Ba6 {[%clk 0:01:28]} 15. Qe3 {[%clk 0:01:51]}  Bc4 {[%clk 0:01:22]} 16. b3 {[%clk 0:01:41]}  Be6 {[%clk 0:01:17]} 17. Bb2 {[%clk 0:01:24]}  b5 {[%clk 0:01:13]} 18. d5 {[%clk 0:01:18]}  cxd5 {[%clk 0:01:08]} 19. exd5 {[%clk 0:01:19]}  Bf5 {[%clk 0:01:08]} 20. a3 {[%clk 0:01:11]}  Nc2 {[%clk 0:01:04]} 21. Nxc2 {[%clk 0:01:10]}  Bxc2 {[%clk 0:01:04]} 22. Re1 {[%clk 0:01:07]}  Re8 {[%clk 0:01:03]} 23. Nd1 {[%clk 0:00:56]}  Bf6 {[%clk 0:00:44]} 24. Be5 {[%clk 0:00:43]}  Bxe5 {[%clk 0:00:39]} 25. Qxe5 {[%clk 0:00:43]}  Bxb3 {[%clk 0:00:39]} 26. Ne3 {[%clk 0:00:39]}  b4 {[%clk 0:00:36]} 27. Ng4 {[%clk 0:00:37]}  f6 {[%clk 0:00:32]} 28. Qe6+ {[%clk 0:00:31]}  Kg7 {[%clk 0:00:31]} 29. axb4 {[%clk 0:00:25]}  axb4 {[%clk 0:00:30]} 30. Rab1 {[%clk 0:00:26]}  Bc2 {[%clk 0:00:24]} 31. Rxb4 {[%clk 0:00:23]}  Bf5 {[%clk 0:00:24]} 32. Qe3 {[%clk 0:00:21]}  Qa5 {[%clk 0:00:21]} 33. Rd4 {[%clk 0:00:19]}  Rac8 {[%clk 0:00:16]} 34. Rdd1 {[%clk 0:00:16]}  Bxg4 {[%clk 0:00:15]} 35. Ra1 {[%clk 0:00:08]}  Qc3 {[%clk 0:00:14]} 36. Qf4 {[%clk 0:00:08]}  Bd7 {[%clk 0:00:13]} 37. Rxe7+ {[%clk 0:00:03]}  Rxe7 {[%clk 0:00:08]} 38. Ra7 {[%clk 0:00:04]}  Rce8 {[%clk 0:00:06]} 39. Qxd6 {[%clk 0:00:03]}  Qe1+ {[%clk 0:00:06]} 40. Bf1 {[%clk 0:00:02]}  Bh3 {[%clk 0:00:06]} 41. Rxe7+ {[%clk 0:00:01]}  Rxe7 {[%clk 0:00:06]} 0-1


[Site "https://www.chess.com"]

[Event "Titled Tuesday Blitz March 01 Late 2022"]
[White "Demidov, Mikhail"]
[Black "Bilych, Olexiy"]
[WhiteFideId "4197143"]
[BlackFideId "14156504"]
[WhiteElo "2525"]
[BlackElo "2195"]
[Result "1-0"]
[Round "06"]
[TimeControl "180+1"]
[Date "2022.03.01"]
[WhiteClock "0:00:13"]
[BlackClock "0:00:06"]

1. Nf3 {[%clk 0:03:00]}  d5 {[%clk 0:02:58]} 2. d4 {[%clk 0:03:00]}  Nf6 {[%clk 0:02:58]} 3. Bf4 {[%clk 0:02:58]}  e6 {[%clk 0:02:58]} 4. e3 {[%clk 0:02:58]}  Bd6 {[%clk 0:02:58]} 5. Bg3 {[%clk 0:02:58]}  O-O {[%clk 0:02:58]} 6. c4 {[%clk 0:02:57]}  dxc4 {[%clk 0:02:50]} 7. Bxc4 {[%clk 0:02:56]}  c5 {[%clk 0:02:51]} 8. dxc5 {[%clk 0:02:55]}  Bxc5 {[%clk 0:02:46]} 9. O-O {[%clk 0:02:55]}  Qe7 {[%clk 0:02:43]} 10. Nc3 {[%clk 0:02:55]}  Rd8 {[%clk 0:02:36]} 11. Qe2 {[%clk 0:02:55]}  a6 {[%clk 0:02:33]} 12. Rfd1 {[%clk 0:02:52]}  Rxd1+ {[%clk 0:02:28]} 13. Rxd1 {[%clk 0:02:52]}  b5 {[%clk 0:02:28]} 14. Bb3 {[%clk 0:02:47]}  Bb7 {[%clk 0:02:23]} 15. Bh4 {[%clk 0:02:46]}  Nbd7 {[%clk 0:02:09]} 16. e4 {[%clk 0:02:45]}  Qe8 {[%clk 0:01:05]} 17. e5 {[%clk 0:02:45]}  Bxf3 {[%clk 0:01:05]} 18. gxf3 {[%clk 0:02:38]}  Nh5 {[%clk 0:01:05]} 19. Bg3 {[%clk 0:01:39]}  Nf8 {[%clk 0:00:56]} 20. f4 {[%clk 0:01:36]}  g6 {[%clk 0:00:54]} 21. Ne4 {[%clk 0:01:32]}  Be7 {[%clk 0:00:49]} 22. Rd3 {[%clk 0:01:18]}  Ng7 {[%clk 0:00:44]} 23. Rc3 {[%clk 0:01:09]}  Rc8 {[%clk 0:00:43]} 24. Qc2 {[%clk 0:01:06]}  Rxc3 {[%clk 0:00:42]} 25. Qxc3 {[%clk 0:01:07]}  Qd7 {[%clk 0:00:41]} 26. Qd2 {[%clk 0:01:01]}  Qxd2 {[%clk 0:00:38]} 27. Nxd2 {[%clk 0:00:59]}  Nd7 {[%clk 0:00:38]} 28. Bc2 {[%clk 0:00:57]}  Nb6 {[%clk 0:00:34]} 29. Kf1 {[%clk 0:00:54]}  Kf8 {[%clk 0:00:33]} 30. Ne4 {[%clk 0:00:47]}  Ke8 {[%clk 0:00:32]} 31. Ng5 {[%clk 0:00:34]}  h6 {[%clk 0:00:32]} 32. Ne4 {[%clk 0:00:28]}  Nf5 {[%clk 0:00:32]} 33. Bd3 {[%clk 0:00:23]}  Kd7 {[%clk 0:00:27]} 34. Ke2 {[%clk 0:00:21]}  Nd5 {[%clk 0:00:26]} 35. Kd2 {[%clk 0:00:20]}  Kc6 {[%clk 0:00:25]} 36. a3 {[%clk 0:00:20]}  Nd4 {[%clk 0:00:23]} 37. Nc3 {[%clk 0:00:17]}  Nxc3 {[%clk 0:00:15]} 38. Kxc3 {[%clk 0:00:16]}  Nf5 {[%clk 0:00:14]} 39. Be4+ {[%clk 0:00:17]}  Kb6 {[%clk 0:00:13]} 40. b4 {[%clk 0:00:13]}  a5 {[%clk 0:00:08]} 41. f3 {[%clk 0:00:13]}  axb4+ {[%clk 0:00:09]} 42. axb4 {[%clk 0:00:14]}  Ka6 {[%clk 0:00:08]} 43. Bf2 {[%clk 0:00:14]}  Ng7 {[%clk 0:00:08]} 44. Bc6 {[%clk 0:00:14]}  Nf5 {[%clk 0:00:07]} 45. Be8 {[%clk 0:00:13]}  g5 {[%clk 0:00:05]} 46. fxg5 {[%clk 0:00:12]}  Bxg5 {[%clk 0:00:04]} 47. Bxf7 {[%clk 0:00:12]}  Bh4 {[%clk 0:00:03]} 48. Bxh4 {[%clk 0:00:11]}  Nxh4 {[%clk 0:00:04]} 49. f4 {[%clk 0:00:12]}  Ng2 {[%clk 0:00:03]} 50. Bxe6 {[%clk 0:00:12]}  Nxf4 {[%clk 0:00:04]} 51. Bf7 {[%clk 0:00:12]}  Kb6 {[%clk 0:00:04]} 52. Kd4 {[%clk 0:00:13]}  Kc6 {[%clk 0:00:04]} 53. Ke4 {[%clk 0:00:13]}  Ne2 {[%clk 0:00:04]} 54. Kf5 {[%clk 0:00:13]}  Nd4+ {[%clk 0:00:03]} 55. Kf6 {[%clk 0:00:14]}  Kd7 {[%clk 0:00:04]} 56. Bg6 {[%clk 0:00:13]}  Nc6 {[%clk 0:00:03]} 57. Bf5+ {[%clk 0:00:12]}  Kc7 {[%clk 0:00:03]} 58. e6 {[%clk 0:00:12]}  Nxb4 {[%clk 0:00:04]} 59. e7 {[%clk 0:00:13]}  Nd5+ {[%clk 0:00:04]} 60. Ke6 {[%clk 0:00:13]}  Nxe7 {[%clk 0:00:04]} 61. Kxe7 {[%clk 0:00:14]}  h5 {[%clk 0:00:05]} 62. h4 {[%clk 0:00:13]}  b4 {[%clk 0:00:05]} 63. Bg6 {[%clk 0:00:11]}  b3 {[%clk 0:00:03]} 64. Bxh5 {[%clk 0:00:12]}  b2 {[%clk 0:00:04]} 65. Bg6 {[%clk 0:00:12]}  Kc6 {[%clk 0:00:05]} 66. h5 {[%clk 0:00:13]}  Kd5 {[%clk 0:00:06]} 67. h6 {[%clk 0:00:13]} 1-0


[Site "https://www.chess.com"]

[Event "Titled Tuesday Blitz March 01 Late 2022"]
[White "Derraugh, Geordie"]
[Black "Prohorov, Olexandr"]
[WhiteFideId "2603950"]
[BlackFideId "14105578"]
[WhiteElo "2116"]
[BlackElo "1993"]
[Result "1-0"]
[Round "06"]
[TimeControl "180+1"]
[Date "2022.03.02"]
[WhiteClock "0:00:52"]
[BlackClock "0:00:03"]

1. e4 {[%clk 0:03:00]}  c5 {[%clk 0:02:59]} 2. c3 {[%clk 0:02:58]}  Nf6 {[%clk 0:02:58]} 3. e5 {[%clk 0:02:58]}  Nd5 {[%clk 0:02:57]} 4. d4 {[%clk 0:02:59]}  cxd4 {[%clk 0:02:55]} 5. Nf3 {[%clk 0:03:00]}  Nc6 {[%clk 0:02:54]} 6. cxd4 {[%clk 0:03:01]}  d6 {[%clk 0:02:53]} 7. exd6 {[%clk 0:03:00]}  Qxd6 {[%clk 0:02:53]} 8. Nc3 {[%clk 0:03:01]}  g6 {[%clk 0:02:51]} 9. Bc4 {[%clk 0:03:00]}  Nxc3 {[%clk 0:02:48]} 10. bxc3 {[%clk 0:03:00]}  Bg7 {[%clk 0:02:49]} 11. O-O {[%clk 0:03:00]}  O-O {[%clk 0:02:49]} 12. Re1 {[%clk 0:02:58]}  Na5 {[%clk 0:02:38]} 13. Bd3 {[%clk 0:02:53]}  Be6 {[%clk 0:02:35]} 14. a4 {[%clk 0:02:43]}  Rac8 {[%clk 0:02:35]} 15. Ba3 {[%clk 0:02:42]}  Qd7 {[%clk 0:02:27]} 16. Ne5 {[%clk 0:02:34]}  Bxe5 {[%clk 0:02:25]} 17. Rxe5 {[%clk 0:02:34]}  Nc4 {[%clk 0:02:22]} 18. Bxc4 {[%clk 0:02:33]}  Rxc4 {[%clk 0:02:22]} 19. d5 {[%clk 0:02:26]}  Bf5 {[%clk 0:02:08]} 20. Rxe7 {[%clk 0:02:22]}  Qc8 {[%clk 0:01:53]} 21. Bb4 {[%clk 0:02:13]}  Rd8 {[%clk 0:01:48]} 22. d6 {[%clk 0:02:12]}  Qc6 {[%clk 0:01:43]} 23. Qd2 {[%clk 0:01:20]}  Rd7 {[%clk 0:00:43]} 24. Qh6 {[%clk 0:01:05]}  Rd8 {[%clk 0:00:17]} 25. Rae1 {[%clk 0:01:01]}  b6 {[%clk 0:00:15]} 26. Rxf7 {[%clk 0:00:53]}  Kxf7 {[%clk 0:00:05]} 27. Qxh7+ {[%clk 0:00:52]}  Kf6 {[%clk 0:00:03]} 28. Qe7# {[%clk 0:00:52]} 1-0


[Site "https://www.chess.com"]

[Event "Titled Tuesday Blitz March 01 Late 2022"]
[White "Dobre, Claudiu-Cristian"]
[Black "Dias, Joao Batista"]
[WhiteFideId "1211854"]
[BlackFideId "2108240"]
[WhiteElo "2207"]
[BlackElo "1898"]
[Result "1-0"]
[Round "06"]
[TimeControl "180+1"]
[Date "2022.03.02"]
[WhiteClock "0:00:07"]
[BlackClock "0:00:35"]

1. c4 {[%clk 0:03:00]}  c5 {[%clk 0:02:57]} 2. Nf3 {[%clk 0:03:00]}  Nc6 {[%clk 0:02:57]} 3. d4 {[%clk 0:03:00]}  g6 {[%clk 0:02:58]} 4. e4 {[%clk 0:02:56]}  Nxd4 {[%clk 0:02:57]} 5. Nxd4 {[%clk 0:02:55]}  cxd4 {[%clk 0:02:56]} 6. Qxd4 {[%clk 0:02:56]}  f6 {[%clk 0:02:53]} 7. Nc3 {[%clk 0:02:50]}  e6 {[%clk 0:02:47]} 8. h4 {[%clk 0:02:47]}  Bg7 {[%clk 0:02:46]} 9. h5 {[%clk 0:02:43]}  Ne7 {[%clk 0:02:43]} 10. h6 {[%clk 0:02:41]}  Bf8 {[%clk 0:02:42]} 11. Qxf6 {[%clk 0:02:41]}  Rg8 {[%clk 0:02:42]} 12. e5 {[%clk 0:02:32]}  Nf5 {[%clk 0:02:41]} 13. Ne4 {[%clk 0:02:30]}  Be7 {[%clk 0:02:38]} 14. g4 {[%clk 0:02:21]}  Bxf6 {[%clk 0:02:37]} 15. Nxf6+ {[%clk 0:02:22]}  Kf7 {[%clk 0:02:37]} 16. gxf5 {[%clk 0:02:20]}  exf5 {[%clk 0:02:34]} 17. Nxg8 {[%clk 0:02:17]}  Kxg8 {[%clk 0:02:33]} 18. Bg2 {[%clk 0:02:17]}  Qa5+ {[%clk 0:02:32]} 19. Kf1 {[%clk 0:02:16]}  Qxe5 {[%clk 0:02:32]} 20. Bd5+ {[%clk 0:02:12]}  Kf8 {[%clk 0:02:29]} 21. Be3 {[%clk 0:02:06]}  Qxb2 {[%clk 0:02:27]} 22. Bc5+ {[%clk 0:02:06]}  Ke8 {[%clk 0:02:26]} 23. Re1+ {[%clk 0:02:05]}  Kd8 {[%clk 0:02:25]} 24. Rh3 {[%clk 0:02:01]}  d6 {[%clk 0:02:21]} 25. Bxd6 {[%clk 0:02:01]}  Kd7 {[%clk 0:02:21]} 26. c5 {[%clk 0:01:50]}  Qd4 {[%clk 0:02:14]} 27. Bf7 {[%clk 0:01:41]}  Kc6 {[%clk 0:02:09]} 28. Re8 {[%clk 0:01:06]}  f4 {[%clk 0:01:50]} 29. Rb3 {[%clk 0:00:52]}  Qd1+ {[%clk 0:01:43]} 30. Re1 {[%clk 0:00:47]}  Qd4 {[%clk 0:01:29]} 31. Rbb1 {[%clk 0:00:20]}  Bf5 {[%clk 0:01:28]} 32. Rbd1 {[%clk 0:00:19]}  Bd3+ {[%clk 0:01:24]} 33. Kg2 {[%clk 0:00:18]}  f3+ {[%clk 0:01:24]} 34. Kxf3 {[%clk 0:00:17]}  Qf6+ {[%clk 0:01:22]} 35. Kg2 {[%clk 0:00:16]}  Qxf7 {[%clk 0:01:18]} 36. Rxd3 {[%clk 0:00:16]}  Qf5 {[%clk 0:01:14]} 37. Rf3 {[%clk 0:00:13]}  Qd5 {[%clk 0:01:11]} 38. Kg3 {[%clk 0:00:11]}  Qg5+ {[%clk 0:01:09]} 39. Kh2 {[%clk 0:00:10]}  Qxh6+ {[%clk 0:01:09]} 40. Rh3 {[%clk 0:00:11]}  Qd2 {[%clk 0:01:07]} 41. Rf1 {[%clk 0:00:10]}  Re8 {[%clk 0:01:05]} 42. Rxh7 {[%clk 0:00:08]}  Re2 {[%clk 0:00:59]} 43. Rc7+ {[%clk 0:00:08]}  Kd5 {[%clk 0:00:58]} 44. Bg3 {[%clk 0:00:08]}  Re6 {[%clk 0:00:49]} 45. Rd7+ {[%clk 0:00:07]}  Kxc5 {[%clk 0:00:46]} 46. Rxd2 {[%clk 0:00:07]}  g5 {[%clk 0:00:45]} 47. Rc1+ {[%clk 0:00:07]}  Kb6 {[%clk 0:00:44]} 48. Rb2+ {[%clk 0:00:07]}  Ka6 {[%clk 0:00:44]} 49. Rc3 {[%clk 0:00:06]}  b6 {[%clk 0:00:44]} 50. Kg2 {[%clk 0:00:06]}  g4 {[%clk 0:00:43]} 51. Rc4 {[%clk 0:00:06]}  Rg6 {[%clk 0:00:42]} 52. Rbb4 {[%clk 0:00:06]}  Kb7 {[%clk 0:00:41]} 53. Rxg4 {[%clk 0:00:07]}  Rc6 {[%clk 0:00:40]} 54. Rbc4 {[%clk 0:00:07]}  Re6 {[%clk 0:00:39]} 55. Rc7+ {[%clk 0:00:08]}  Ka6 {[%clk 0:00:38]} 56. Ra4+ {[%clk 0:00:08]}  Kb5 {[%clk 0:00:39]} 57. Raxa7 {[%clk 0:00:07]}  Re2 {[%clk 0:00:39]} 58. a4+ {[%clk 0:00:08]}  Kb4 {[%clk 0:00:37]} 59. Bd6+ {[%clk 0:00:07]}  Kb3 {[%clk 0:00:36]} 60. a5 {[%clk 0:00:07]}  bxa5 {[%clk 0:00:35]} 61. Rab7+ {[%clk 0:00:07]}  Ka4 {[%clk 0:00:35]} 62. Rc4# {[%clk 0:00:07]} 1-0


[Site "https://www.chess.com"]

[Event "Titled Tuesday Blitz March 01 Late 2022"]
[White "Domingo Nunez, Alejandro"]
[Black "Boyer, Mahel"]
[WhiteFideId "22245561"]
[BlackFideId "45102422"]
[WhiteElo "2215"]
[BlackElo "2328"]
[Result "1-0"]
[Round "06"]
[TimeControl "180+1"]
[Date "2022.03.01"]
[WhiteClock "0:00:47"]
[BlackClock "0:00:38"]

1. Nf3 {[%clk 0:03:00]}  g6 {[%clk 0:02:56]} 2. g3 {[%clk 0:02:59]}  Bg7 {[%clk 0:02:56]} 3. d4 {[%clk 0:03:00]}  c5 {[%clk 0:02:52]} 4. d5 {[%clk 0:02:51]}  Nf6 {[%clk 0:02:50]} 5. Bg2 {[%clk 0:02:51]}  O-O {[%clk 0:02:50]} 6. O-O {[%clk 0:02:51]}  d6 {[%clk 0:02:49]} 7. Nc3 {[%clk 0:02:49]}  Nbd7 {[%clk 0:02:21]} 8. a4 {[%clk 0:02:44]}  a6 {[%clk 0:02:18]} 9. Nd2 {[%clk 0:02:39]}  Rb8 {[%clk 0:02:15]} 10. a5 {[%clk 0:02:36]}  b5 {[%clk 0:02:10]} 11. axb6 {[%clk 0:02:36]}  Nxb6 {[%clk 0:02:11]} 12. h3 {[%clk 0:02:31]}  e6 {[%clk 0:02:02]} 13. dxe6 {[%clk 0:02:18]}  Bxe6 {[%clk 0:02:03]} 14. Nde4 {[%clk 0:02:04]}  Nxe4 {[%clk 0:02:00]} 15. Nxe4 {[%clk 0:02:02]}  Nc4 {[%clk 0:01:59]} 16. Rxa6 {[%clk 0:02:01]}  Nxb2 {[%clk 0:01:58]} 17. Bxb2 {[%clk 0:02:00]}  Rxb2 {[%clk 0:01:58]} 18. Rxd6 {[%clk 0:01:59]}  Qe7 {[%clk 0:01:55]} 19. Nxc5 {[%clk 0:01:40]}  Bc4 {[%clk 0:01:54]} 20. Ne4 {[%clk 0:01:31]}  f5 {[%clk 0:01:43]} 21. Rd7 {[%clk 0:01:30]}  Qe5 {[%clk 0:01:40]} 22. Ng5 {[%clk 0:01:12]}  Bxe2 {[%clk 0:01:34]} 23. Qd5+ {[%clk 0:01:10]}  Qxd5 {[%clk 0:01:29]} 24. Bxd5+ {[%clk 0:01:11]}  Kh8 {[%clk 0:01:29]} 25. Re1 {[%clk 0:01:02]}  Rxc2 {[%clk 0:01:29]} 26. Nf7+ {[%clk 0:00:51]}  Rxf7 {[%clk 0:01:29]} 27. Bxf7 {[%clk 0:00:52]}  Bf6 {[%clk 0:00:44]} 28. Bb3 {[%clk 0:00:48]}  Rb2 {[%clk 0:00:44]} 29. Bd1 {[%clk 0:00:48]}  Bxd1 {[%clk 0:00:38]} 30. Re8# {[%clk 0:00:47]} 1-0


[Site "https://www.chess.com"]